[Event "Rapid del Mercoledì"]
[Site "Chess.com"]
[Date "2020.05.06"]
[Round "3"]
[White "MarcoCiva"]
[Black "Mrtre7"]
[Result "0-1"]
[WhiteElo "1418"]
[BlackElo "1440"]
[TimeControl "720+3"]
[EndTime "13:09:27 PDT"]
[Termination "Mrtre7 ha vinto per abbandono"]

1. d4 {[%clk 0:12:02.9]} 1... d5 {[%clk 0:12:01.8]} 2. c4 {[%clk 0:11:57.7]}
2... c6 {[%clk 0:12:02.6]} 3. Nf3 {[%clk 0:11:55.1]} 3... e6 {[%clk 0:12:02.2]}
4. g3 {[%clk 0:11:53.5]} 4... dxc4 {[%clk 0:11:58.6]} 5. Bf4 {[%clk 0:11:47.8]}
5... Nf6 {[%clk 0:11:56.4]} 6. Nc3 {[%clk 0:11:44.7]} 6... Bd6 {[%clk
0:11:18.8]} 7. Bxd6 {[%clk 0:11:40.9]} 7... Qxd6 {[%clk 0:11:20.6]} 8. e3 {[%clk
0:11:33.9]} 8... b5 {[%clk 0:11:21.4]} 9. Bg2 {[%clk 0:11:29.5]} 9... Bb7 {[%clk
0:11:16.9]} 10. Ne5 {[%clk 0:11:27.4]} 10... Nd5 {[%clk 0:11:08.8]} 11. Bxd5
{[%clk 0:11:23.8]} 11... cxd5 {[%clk 0:10:49.3]} 12. O-O {[%clk 0:11:21.2]}
12... a6 {[%clk 0:10:28.7]} 13. Qh5 {[%clk 0:11:12]} 13... O-O {[%clk
0:09:55.5]} 14. Rfc1 {[%clk 0:11:02.5]} 14... Nd7 {[%clk 0:09:48.2]} 15. Nxd7
{[%clk 0:10:58.7]} 15... Qxd7 {[%clk 0:09:47.7]} 16. a3 {[%clk 0:11:00.3]} 16...
Qe7 {[%clk 0:09:22.1]} 17. Ne2 {[%clk 0:10:50.8]} 17... Rae8 {[%clk 0:08:45.1]}
18. Nf4 {[%clk 0:10:07.5]} 18... Qf6 {[%clk 0:07:59.4]} 19. Qf3 {[%clk 0:09:53]}
19... e5 {[%clk 0:07:50.1]} 20. dxe5 {[%clk 0:09:46.5]} 20... Rxe5 {[%clk
0:07:51.4]} 21. Qd1 {[%clk 0:09:37]} 21... Rd8 {[%clk 0:07:33.6]} 22. Qd4 {[%clk
0:09:26.9]} 22... Rde8 {[%clk 0:06:14.3]} 23. Rd1 {[%clk 0:09:17.4]} 23... Qf5
{[%clk 0:05:48.3]} 24. Qb6 {[%clk 0:09:02.9]} 24... Ba8 {[%clk 0:05:19.8]} 25.
Qxa6 {[%clk 0:08:51.4]} 25... Qe4 {[%clk 0:03:25.4]} 26. Qxb5 {[%clk 0:08:34.4]}
26... d4 {[%clk 0:03:17.1]} 27. Nd5 {[%clk 0:06:44.5]} 27... Bxd5 {[%clk
0:02:53.4]} 28. Qxc4 {[%clk 0:06:43.2]} 0-1

[Event "Rapid del Mercoledì"]
[Site "Chess.com"]
[Date "2020.05.06"]
[Round "3"]
[White "BAKR1980"]
[Black "pedrak"]
[Result "0-1"]
[WhiteElo "1617"]
[BlackElo "1691"]
[TimeControl "720+3"]
[EndTime "13:10:24 PDT"]
[Termination "pedrak ha vinto per abbandono"]

1. e4 {[%clk 0:12:02.9]} 1... d5 {[%clk 0:11:59.8]} 2. exd5 {[%clk 0:11:41.6]}
2... Qxd5 {[%clk 0:11:58.9]} 3. Nc3 {[%clk 0:11:41.5]} 3... Qd6 {[%clk 0:12:00]}
4. Nf3 {[%clk 0:11:40.7]} 4... Nf6 {[%clk 0:12:01.1]} 5. d4 {[%clk 0:11:41.3]}
5... Bg4 {[%clk 0:12:00.7]} 6. Be2 {[%clk 0:11:42.4]} 6... c6 {[%clk 0:12:01.8]}
7. O-O {[%clk 0:11:42.9]} 7... e6 {[%clk 0:12:02.7]} 8. Bg5 {[%clk 0:11:39.1]}
8... Be7 {[%clk 0:12:02.1]} 9. Bxf6 {[%clk 0:11:30]} 9... Bxf6 {[%clk
0:11:59.3]} 10. Ne4 {[%clk 0:11:31.9]} 10... Qd8 {[%clk 0:12:00.1]} 11. c3
{[%clk 0:11:30.4]} 11... O-O {[%clk 0:11:53.3]} 12. Qb3 {[%clk 0:11:27.7]} 12...
b6 {[%clk 0:11:32.8]} 13. a4 {[%clk 0:11:26.8]} 13... Bf5 {[%clk 0:11:23.5]} 14.
Ng3 {[%clk 0:11:25]} 14... Bg6 {[%clk 0:11:22.6]} 15. a5 {[%clk 0:11:24.7]}
15... Nd7 {[%clk 0:11:22]} 16. axb6 {[%clk 0:11:24.1]} 16... axb6 {[%clk
0:11:22.6]} 17. Ra3 {[%clk 0:11:00.1]} 17... Rxa3 {[%clk 0:11:21.7]} 18. Qxa3
{[%clk 0:11:01.3]} 18... Be7 {[%clk 0:11:08.1]} 19. Qa7 {[%clk 0:10:54.1]} 19...
Bd6 {[%clk 0:10:40.9]} 20. Nh4 {[%clk 0:10:45]} 20... Nf6 {[%clk 0:10:20.3]} 21.
Nxg6 {[%clk 0:10:44]} 21... hxg6 {[%clk 0:10:21.4]} 22. Ra1 {[%clk 0:10:28]}
22... c5 {[%clk 0:10:09.7]} 23. dxc5 {[%clk 0:10:17.4]} 23... bxc5 {[%clk
0:10:01.6]} 24. Rd1 {[%clk 0:10:10.5]} 24... Qb8 {[%clk 0:09:56]} 25. Qa3 {[%clk
0:09:59.4]} 25... Nd5 {[%clk 0:09:15.2]} 26. Ne4 {[%clk 0:09:54.9]} 26... Nf4
{[%clk 0:08:10.7]} 27. Bf3 {[%clk 0:09:48]} 27... Be7 {[%clk 0:07:55.9]} 28. Rd7
{[%clk 0:09:44.4]} 28... Re8 {[%clk 0:07:46.5]} 29. Nxc5 {[%clk 0:09:17.9]}
29... Qc8 {[%clk 0:07:06.3]} 30. Rxe7 {[%clk 0:08:11.8]} 30... Rxe7 {[%clk
0:07:01.4]} 31. g3 {[%clk 0:08:08.4]} 31... Nd5 {[%clk 0:06:42.4]} 32. c4 {[%clk
0:07:59.6]} 32... Nf6 {[%clk 0:06:38.5]} 33. b4 {[%clk 0:07:59.9]} 33... Rc7
{[%clk 0:06:30.1]} 34. Be2 {[%clk 0:07:25.1]} 34... Nd7 {[%clk 0:06:10.4]} 35.
Nxd7 {[%clk 0:07:17.2]} 35... Qxd7 {[%clk 0:06:04.7]} 36. b5 {[%clk 0:07:14.1]}
36... Ra7 {[%clk 0:05:29]} 37. Qc1 {[%clk 0:07:06.2]} 37... Qd4 {[%clk
0:05:25.4]} 38. Kg2 {[%clk 0:07:00.6]} 38... Ra2 {[%clk 0:05:13.6]} 39. Qf1
{[%clk 0:06:47.4]} 39... Ra1 {[%clk 0:05:06.5]} 40. Qxa1 {[%clk 0:06:16]} 40...
Qxa1 {[%clk 0:05:06.9]} 41. c5 {[%clk 0:05:53.2]} 41... Qb2 {[%clk 0:04:58.3]}
42. Bf1 {[%clk 0:05:52]} 42... Qb4 {[%clk 0:04:49.2]} 43. c6 {[%clk 0:05:52.7]}
43... Qc5 {[%clk 0:04:50.5]} 44. h4 {[%clk 0:05:52.4]} 44... Kf8 {[%clk
0:04:51.4]} 0-1

[Event "Rapid del Mercoledì"]
[Site "Chess.com"]
[Date "2020.05.06"]
[Round "3"]
[White "OMatteoWuO"]
[Black "fausto2p"]
[Result "0-1"]
[WhiteElo "1167"]
[BlackElo "1064"]
[TimeControl "720+3"]
[EndTime "13:10:51 PDT"]
[Termination "fausto2p ha vinto per scaccomatto"]

1. d4 {[%clk 0:12:02.9]} 1... d5 {[%clk 0:12:00.4]} 2. c4 {[%clk 0:12:04.1]}
2... c6 {[%clk 0:11:53.7]} 3. Nc3 {[%clk 0:12:03.3]} 3... Nf6 {[%clk 0:11:54.9]}
4. Nf3 {[%clk 0:12:03.1]} 4... e6 {[%clk 0:11:55.6]} 5. e3 {[%clk 0:11:56.8]}
5... Bb4 {[%clk 0:11:42.6]} 6. Bd2 {[%clk 0:11:52.7]} 6... Qa5 {[%clk
0:11:37.7]} 7. a3 {[%clk 0:11:23.8]} 7... Be7 {[%clk 0:10:47.2]} 8. Be2 {[%clk
0:10:36.8]} 8... dxc4 {[%clk 0:10:05]} 9. Bxc4 {[%clk 0:10:12.1]} 9... Qc7
{[%clk 0:09:52.7]} 10. O-O {[%clk 0:10:03.1]} 10... b5 {[%clk 0:09:49.9]} 11.
Bd3 {[%clk 0:09:31.1]} 11... a5 {[%clk 0:09:42.4]} 12. e4 {[%clk 0:09:10.2]}
12... Ba6 {[%clk 0:09:27.3]} 13. Bg5 {[%clk 0:09:04.5]} 13... h6 {[%clk
0:09:24.6]} 14. Bxf6 {[%clk 0:09:05.6]} 14... Bxf6 {[%clk 0:09:19.5]} 15. e5
{[%clk 0:08:50]} 15... Bg5 {[%clk 0:09:10.6]} 16. Nxg5 {[%clk 0:08:43.2]} 16...
hxg5 {[%clk 0:09:11.1]} 17. Qg4 {[%clk 0:08:31.5]} 17... f6 {[%clk 0:09:04.8]}
18. Bg6+ {[%clk 0:08:26.3]} 18... Ke7 {[%clk 0:08:47.6]} 19. exf6+ {[%clk
0:08:25]} 19... gxf6 {[%clk 0:08:39.7]} 20. h3 {[%clk 0:08:08.9]} 20... b4
{[%clk 0:08:06]} 21. axb4 {[%clk 0:08:01.5]} 21... Bxf1 {[%clk 0:08:05.6]} 22.
Kxf1 {[%clk 0:07:55.2]} 22... Rh4 {[%clk 0:07:05.2]} 23. Qe2 {[%clk 0:07:35.8]}
23... e5 {[%clk 0:06:02.4]} 24. dxe5 {[%clk 0:06:44.4]} 24... Qxe5 {[%clk
0:05:57]} 25. Qxe5+ {[%clk 0:06:39.4]} 25... fxe5 {[%clk 0:05:57.4]} 26. Re1
{[%clk 0:06:37.3]} 26... Ke6 {[%clk 0:05:53.1]} 27. bxa5 {[%clk 0:06:35.4]}
27... Rxa5 {[%clk 0:05:52.6]} 28. Ne4 {[%clk 0:06:14]} 28... Nd7 {[%clk
0:04:31.6]} 29. Nxg5+ {[%clk 0:06:11.8]} 29... Kf6 {[%clk 0:04:25.1]} 30. Nf3
{[%clk 0:06:12.9]} 30... Rb4 {[%clk 0:03:48.1]} 31. Be4 {[%clk 0:05:55.1]} 31...
c5 {[%clk 0:03:38.4]} 32. Rd1 {[%clk 0:05:18.8]} 32... Rxe4 {[%clk 0:03:34.3]}
33. Rxd7 {[%clk 0:05:20.2]} 33... Ra1+ {[%clk 0:03:30.9]} 34. Ne1 {[%clk
0:05:19]} 34... Raxe1# {[%clk 0:03:31.3]} 0-1

[Event "Rapid del Mercoledì"]
[Site "Chess.com"]
[Date "2020.05.06"]
[Round "3"]
[White "sirmale49"]
[Black "SanSecondoPR"]
[Result "1-0"]
[WhiteElo "1385"]
[BlackElo "1273"]
[TimeControl "720+3"]
[EndTime "13:10:59 PDT"]
[Termination "sirmale49 ha vinto per abbandono"]

1. e4 {[%clk 0:12:02.9]} 1... e5 {[%clk 0:11:58.7]} 2. f4 {[%clk 0:12:02.9]}
2... d5 {[%clk 0:11:59.4]} 3. Nc3 {[%clk 0:11:56]} 3... d4 {[%clk 0:11:55.8]} 4.
Nce2 {[%clk 0:11:33.7]} 4... exf4 {[%clk 0:11:53.9]} 5. Nxf4 {[%clk 0:11:30.5]}
5... Nc6 {[%clk 0:11:40.9]} 6. d3 {[%clk 0:11:29.1]} 6... Bd6 {[%clk 0:11:28.3]}
7. Qf3 {[%clk 0:11:05.3]} 7... Ne5 {[%clk 0:11:21.8]} 8. Qg3 {[%clk 0:10:50.2]}
8... Ng6 {[%clk 0:11:11.4]} 9. Nf3 {[%clk 0:10:17.5]} 9... Nf6 {[%clk
0:11:08.9]} 10. e5 {[%clk 0:09:32.4]} 10... Nh5 {[%clk 0:11:04.5]} 11. Nxh5
{[%clk 0:09:28.8]} 11... Bxe5 {[%clk 0:10:47.6]} 12. Nxe5 {[%clk 0:09:22]} 12...
O-O {[%clk 0:10:45.3]} 13. Nxg6 {[%clk 0:08:40.4]} 13... fxg6 {[%clk 0:10:32.9]}
14. Nf4 {[%clk 0:08:37.8]} 14... Qe7+ {[%clk 0:10:13.5]} 15. Ne2 {[%clk
0:08:32.6]} 15... Qc5 {[%clk 0:09:56.4]} 16. Kd1 {[%clk 0:08:10.6]} 16... Bf5
{[%clk 0:09:37.7]} 17. Bd2 {[%clk 0:07:59.4]} 17... Qb6 {[%clk 0:09:32]} 18. Rb1
{[%clk 0:07:35.6]} 18... Qa6 {[%clk 0:09:27.2]} 19. a3 {[%clk 0:07:35]} 19... c5
{[%clk 0:09:02.2]} 20. Nf4 {[%clk 0:07:25.6]} 20... Qa4 {[%clk 0:08:44.4]} 21.
Qf3 {[%clk 0:07:10.9]} 21... Qd7 {[%clk 0:08:30.1]} 22. Be2 {[%clk 0:06:42]}
22... Qf7 {[%clk 0:08:04.5]} 23. g3 {[%clk 0:06:37.3]} 23... Qa2 {[%clk
0:07:58.5]} 24. Rc1 {[%clk 0:06:33.9]} 24... Qxb2 {[%clk 0:07:50.3]} 25. Qd5+
{[%clk 0:06:29.1]} 25... Kh8 {[%clk 0:07:39.4]} 26. g4 {[%clk 0:06:12.9]} 26...
Rad8 {[%clk 0:07:33.2]} 27. Qxc5 {[%clk 0:06:01.6]} 27... Bc8 {[%clk 0:07:22.6]}
28. h4 {[%clk 0:05:51]} 28... b6 {[%clk 0:07:13.1]} 29. Qb4 {[%clk 0:05:24.3]}
29... Qa2 {[%clk 0:07:01.6]} 30. h5 {[%clk 0:05:19.3]} 30... g5 {[%clk
0:06:52.7]} 31. Ng6+ {[%clk 0:04:14.5]} 31... hxg6 {[%clk 0:05:59.2]} 32. hxg6+
{[%clk 0:04:14.5]} 32... Kg8 {[%clk 0:05:55.1]} 33. Qb3+ {[%clk 0:04:02.6]}
33... Qxb3 {[%clk 0:05:52]} 34. cxb3 {[%clk 0:04:04.1]} 34... Rf6 {[%clk
0:05:43.1]} 35. Bxg5 {[%clk 0:04:01.8]} 35... Bb7 {[%clk 0:05:21.7]} 36. Re1
{[%clk 0:03:49.3]} 1-0

[Event "Rapid del Mercoledì"]
[Site "Chess.com"]
[Date "2020.05.06"]
[Round "4"]
[White "SanSecondoPR"]
[Black "OMatteoWuO"]
[Result "0-1"]
[WhiteElo "1252"]
[BlackElo "1186"]
[TimeControl "720+3"]
[EndTime "13:20:24 PDT"]
[Termination "OMatteoWuO ha vinto per ritiro dell'avversario"]

1. e4 {[%clk 0:12:02.9]} 1... c5 {[%clk 0:12:01]} 2. d4 {[%clk 0:12:04.5]} 2...
cxd4 {[%clk 0:11:56.6]} 3. Bc4 {[%clk 0:11:57.8]} 3... Nc6 {[%clk 0:11:53.8]} 4.
Nf3 {[%clk 0:11:54.9]} 4... Nf6 {[%clk 0:11:54]} 5. e5 {[%clk 0:11:55.2]} 5...
Nxe5 {[%clk 0:11:34]} 6. Nxe5 {[%clk 0:11:54.9]} 6... Qa5+ {[%clk 0:11:35.4]} 7.
Bd2 {[%clk 0:11:47.5]} 7... Qxe5+ {[%clk 0:11:36.8]} 8. Be2 {[%clk 0:11:46.9]}
8... d6 {[%clk 0:11:28.7]} 9. O-O {[%clk 0:11:45.8]} 9... e6 {[%clk 0:11:10.2]}
10. c3 {[%clk 0:11:45.3]} 10... dxc3 {[%clk 0:11:08.5]} 11. Bxc3 {[%clk
0:11:46]} 11... Qc5 {[%clk 0:10:32.5]} 12. Nd2 {[%clk 0:11:29.8]} 12... Be7
{[%clk 0:10:24.9]} 13. Nb3 {[%clk 0:11:29.9]} 13... Qc7 {[%clk 0:10:16.4]} 14.
Rc1 {[%clk 0:11:28.7]} 14... Qd8 {[%clk 0:10:08.5]} 15. Qc2 {[%clk 0:11:11.9]}
15... O-O {[%clk 0:10:08.5]} 16. Bd3 {[%clk 0:11:10.3]} 16... g6 {[%clk
0:09:47.7]} 17. f4 {[%clk 0:11:07.1]} 17... Nd5 {[%clk 0:08:41.3]} 18. Bd2
{[%clk 0:11:01.4]} 18... Bf6 {[%clk 0:08:20.9]} 19. f5 {[%clk 0:10:45.9]} 19...
exf5 {[%clk 0:08:17.8]} 20. Bh6 {[%clk 0:10:35.8]} 20... Re8 {[%clk 0:08:04.5]}
21. Bc4 {[%clk 0:10:31.4]} 21... Be6 {[%clk 0:07:24.4]} 22. Bb5 {[%clk
0:10:25.7]} 0-1

[Event "Rapid del Mercoledì"]
[Site "Chess.com"]
[Date "2020.05.06"]
[Round "4"]
[White "sirmale49"]
[Black "BAKR1980"]
[Result "0-1"]
[WhiteElo "1382"]
[BlackElo "1625"]
[TimeControl "720+3"]
[EndTime "13:21:13 PDT"]
[Termination "BAKR1980 ha vinto per abbandono"]

1. e4 {[%clk 0:12:02.9]} 1... e5 {[%clk 0:12:01.5]} 2. f4 {[%clk 0:12:04.4]}
2... exf4 {[%clk 0:12:02.3]} 3. Nf3 {[%clk 0:12:06]} 3... Be7 {[%clk 0:12:04.6]}
4. d4 {[%clk 0:12:07.4]} 4... Bh4+ {[%clk 0:12:06.6]} 5. Ke2 {[%clk 0:12:07.5]}
5... d5 {[%clk 0:12:06.5]} 6. e5 {[%clk 0:12:07.1]} 6... Bg4 {[%clk 0:12:08.5]}
7. Bxf4 {[%clk 0:12:07.7]} 7... Ne7 {[%clk 0:12:08.7]} 8. h3 {[%clk 0:12:03.2]}
8... Bh5 {[%clk 0:12:08.8]} 9. g3 {[%clk 0:11:58.1]} 9... Ng6 {[%clk 0:12:09.4]}
10. Be3 {[%clk 0:11:47.6]} 10... Bxg3 {[%clk 0:12:09.5]} 11. Bg2 {[%clk
0:11:34.2]} 11... Nc6 {[%clk 0:12:08.3]} 12. c3 {[%clk 0:11:33.1]} 12... Qe7
{[%clk 0:12:07.5]} 13. Kd3 {[%clk 0:11:24.4]} 13... O-O-O {[%clk 0:11:56.8]} 14.
Qf1 {[%clk 0:11:24.1]} 14... f6 {[%clk 0:11:57.2]} 15. h4 {[%clk 0:10:46.8]}
15... fxe5 {[%clk 0:11:55.1]} 16. Kd2 {[%clk 0:10:21.7]} 16... exd4 {[%clk
0:11:48.6]} 17. Bh3+ {[%clk 0:10:12.9]} 17... Kb8 {[%clk 0:11:48.1]} 18. Bxd4
{[%clk 0:10:09.6]} 18... Nxd4 {[%clk 0:11:44.8]} 19. Nxd4 {[%clk 0:10:08.4]}
19... Bxh4 {[%clk 0:11:44]} 20. Nf5 {[%clk 0:09:51.4]} 20... Bg5+ {[%clk
0:11:40.6]} 21. Kc2 {[%clk 0:09:44.5]} 21... Qe4+ {[%clk 0:11:40.7]} 22. Kb3
{[%clk 0:09:40.1]} 22... Be2 {[%clk 0:11:34.5]} 23. Qg1 {[%clk 0:09:18.3]} 23...
Qc4+ {[%clk 0:11:26.3]} 24. Ka3 {[%clk 0:09:11.1]} 24... Ne7 {[%clk 0:11:09.8]}
25. Nxe7 {[%clk 0:08:52.2]} 25... Bxe7+ {[%clk 0:11:10.5]} 26. b4 {[%clk
0:08:52.3]} 26... a5 {[%clk 0:11:11.3]} 27. Qe3 {[%clk 0:08:16.5]} 27... axb4+
{[%clk 0:11:11.3]} 28. Kb2 {[%clk 0:08:07.6]} 28... bxc3+ {[%clk 0:11:08.7]} 29.
Kc2 {[%clk 0:07:47.2]} 29... d4 {[%clk 0:11:05.1]} 30. Qxe7 {[%clk 0:07:28.8]}
30... d3+ {[%clk 0:11:04.1]} 31. Kc1 {[%clk 0:07:26.7]} 31... d2+ {[%clk
0:11:01.5]} 32. Kc2 {[%clk 0:07:27.1]} 32... d1=Q+ {[%clk 0:10:58]} 33. Rxd1
{[%clk 0:07:26.3]} 33... Bxd1+ {[%clk 0:10:58.2]} 34. Kc1 {[%clk 0:07:12.4]}
34... Qf4+ {[%clk 0:10:59.5]} 0-1

[Event "Rapid del Mercoledì"]
[Site "Chess.com"]
[Date "2020.05.06"]
[Round "4"]
[White "Luca090267"]
[Black "MarcoCiva"]
[Result "1-0"]
[WhiteElo "1420"]
[BlackElo "1398"]
[TimeControl "720+3"]
[EndTime "13:25:41 PDT"]
[Termination "Luca090267 ha vinto per abbandono"]

1. e4 {[%clk 0:12:02.1]} 1... e5 {[%clk 0:11:58.3]} 2. Nf3 {[%clk 0:12:01.1]}
2... Nf6 {[%clk 0:11:58.2]} 3. Nc3 {[%clk 0:11:59]} 3... Nc6 {[%clk 0:11:56.9]}
4. d4 {[%clk 0:11:54.2]} 4... exd4 {[%clk 0:11:56.6]} 5. Nxd4 {[%clk 0:11:51.9]}
5... Bb4 {[%clk 0:11:49.1]} 6. Nxc6 {[%clk 0:11:30.6]} 6... bxc6 {[%clk
0:11:37]} 7. Bd3 {[%clk 0:11:27.2]} 7... O-O {[%clk 0:11:36.3]} 8. O-O {[%clk
0:11:27.2]} 8... a5 {[%clk 0:11:29.1]} 9. Ne2 {[%clk 0:11:07.4]} 9... Ba6 {[%clk
0:11:05.9]} 10. f3 {[%clk 0:10:58.5]} 10... Bxd3 {[%clk 0:11:05.5]} 11. Qxd3
{[%clk 0:10:57.3]} 11... Re8 {[%clk 0:10:54.5]} 12. c3 {[%clk 0:10:20]} 12...
Bc5+ {[%clk 0:10:53.1]} 13. Be3 {[%clk 0:10:00.5]} 13... Bxe3+ {[%clk
0:10:53.5]} 14. Qxe3 {[%clk 0:10:00.4]} 14... d5 {[%clk 0:10:55.3]} 15. Ng3
{[%clk 0:09:59.9]} 15... dxe4 {[%clk 0:10:35]} 16. Nxe4 {[%clk 0:09:58.4]} 16...
Nd5 {[%clk 0:10:26.9]} 17. Qd4 {[%clk 0:09:47.9]} 17... Nf4 {[%clk 0:10:07.4]}
18. Qxd8 {[%clk 0:09:46.2]} 18... Raxd8 {[%clk 0:10:08.3]} 19. Rad1 {[%clk
0:09:26.9]} 19... f5 {[%clk 0:08:47.9]} 20. Ng3 {[%clk 0:09:04.5]} 20... g6
{[%clk 0:08:48.1]} 21. Rfe1 {[%clk 0:08:01.4]} 21... Rxe1+ {[%clk 0:07:58.7]}
22. Rxe1 {[%clk 0:07:59.3]} 22... Nd3 {[%clk 0:07:58.9]} 23. Rd1 {[%clk
0:07:53.9]} 23... Kf7 {[%clk 0:07:47.6]} 24. Ne2 {[%clk 0:07:55.5]} 24... Ke7
{[%clk 0:07:45.4]} 25. Nd4 {[%clk 0:07:43.9]} 25... Ne5 {[%clk 0:06:47.9]} 26.
Re1 {[%clk 0:07:38.5]} 26... Kf6 {[%clk 0:06:37.5]} 27. Rxe5 {[%clk 0:07:32.9]}
27... Kxe5 {[%clk 0:06:31]} 28. Nxc6+ {[%clk 0:07:33]} 28... Kd5 {[%clk
0:06:32.4]} 29. Nxd8 {[%clk 0:07:34.9]} 29... Kc4 {[%clk 0:06:31.3]} 30. Kf2
{[%clk 0:07:35.6]} 30... Kd3 {[%clk 0:06:33.3]} 31. Ne6 {[%clk 0:07:24.2]} 31...
Kc2 {[%clk 0:06:35.2]} 32. b4 {[%clk 0:07:21.4]} 32... a4 {[%clk 0:06:33.9]} 33.
Nxc7 {[%clk 0:07:18.7]} 33... Kb2 {[%clk 0:06:32.9]} 34. b5 {[%clk 0:06:56.8]}
34... Kxa2 {[%clk 0:06:34.7]} 35. b6 {[%clk 0:06:58.7]} 35... Kb2 {[%clk
0:06:37.1]} 36. b7 {[%clk 0:07:00.6]} 1-0

[Event "Rapid del Mercoledì"]
[Site "Chess.com"]
[Date "2020.05.06"]
[Round "4"]
[White "sergiodone"]
[Black "fausto2p"]
[Result "1-0"]
[WhiteElo "1543"]
[BlackElo "1061"]
[TimeControl "720+3"]
[EndTime "13:27:35 PDT"]
[Termination "sergiodone ha vinto per abbandono"]

1. e4 {[%clk 0:12:01.4]} 1... e6 {[%clk 0:12:01]} 2. d4 {[%clk 0:11:50.1]} 2...
d5 {[%clk 0:12:02.6]} 3. Nd2 {[%clk 0:11:50.3]} 3... Nf6 {[%clk 0:12:03.9]} 4.
Bd3 {[%clk 0:11:48.8]} 4... c5 {[%clk 0:11:56.1]} 5. c3 {[%clk 0:11:49.9]} 5...
Nc6 {[%clk 0:11:47.8]} 6. Ngf3 {[%clk 0:11:50.3]} 6... Qb6 {[%clk 0:11:10.6]} 7.
Kf1 {[%clk 0:11:46.9]} 7... Bd7 {[%clk 0:10:41.7]} 8. exd5 {[%clk 0:11:47.4]}
8... Nxd5 {[%clk 0:10:36.5]} 9. c4 {[%clk 0:11:14.3]} 9... Ndb4 {[%clk 0:10:09]}
10. Be4 {[%clk 0:11:14]} 10... Nxd4 {[%clk 0:09:59.6]} 11. Nxd4 {[%clk
0:11:06.9]} 11... cxd4 {[%clk 0:09:51]} 12. b3 {[%clk 0:11:08.8]} 12... Bc5
{[%clk 0:09:44.2]} 13. Qf3 {[%clk 0:11:00.7]} 13... Bc6 {[%clk 0:09:18.4]} 14.
h4 {[%clk 0:10:53.9]} 14... Bxe4 {[%clk 0:09:16.9]} 15. Qxe4 {[%clk 0:10:54.3]}
15... d3 {[%clk 0:09:05.8]} 16. g3 {[%clk 0:10:52.5]} 16... Bxf2 {[%clk
0:08:57.2]} 17. Kg2 {[%clk 0:10:45.6]} 17... O-O {[%clk 0:07:51.7]} 18. Nf3
{[%clk 0:10:45.3]} 18... Rad8 {[%clk 0:07:22.6]} 19. Bd2 {[%clk 0:10:43]} 19...
a5 {[%clk 0:07:08.5]} 20. a4 {[%clk 0:10:44.7]} 20... Qc6 {[%clk 0:06:43.2]} 21.
Qxc6 {[%clk 0:10:40.9]} 21... bxc6 {[%clk 0:06:37.1]} 22. Kxf2 {[%clk
0:10:42.6]} 22... c5 {[%clk 0:06:19.7]} 23. Bxb4 {[%clk 0:10:39.9]} 23... cxb4
{[%clk 0:06:14.5]} 24. Rad1 {[%clk 0:10:40.5]} 24... Rfe8 {[%clk 0:06:03.5]} 25.
Ke3 {[%clk 0:10:42]} 25... e5 {[%clk 0:06:01.6]} 26. Rxd3 {[%clk 0:10:43.8]}
26... Rxd3+ {[%clk 0:05:59.7]} 27. Kxd3 {[%clk 0:10:42.7]} 27... e4+ {[%clk
0:06:00.1]} 28. Ke3 {[%clk 0:10:40.4]} 28... exf3+ {[%clk 0:06:01.3]} 29. Kxf3
{[%clk 0:10:42.1]} 29... f6 {[%clk 0:05:51.5]} 30. Rc1 {[%clk 0:10:43.2]} 30...
Kf7 {[%clk 0:05:40.9]} 31. c5 {[%clk 0:10:44.8]} 31... Rc8 {[%clk 0:05:41.2]}
32. Kf4 {[%clk 0:10:44.9]} 32... Ke6 {[%clk 0:05:40.9]} 33. Ke4 {[%clk
0:10:46.9]} 33... g6 {[%clk 0:05:35.7]} 34. Kd4 {[%clk 0:10:47.6]} 34... Kf5
{[%clk 0:05:31.4]} 35. Re1 {[%clk 0:10:42.3]} 35... Kg4 {[%clk 0:05:31.4]} 36.
Re4+ {[%clk 0:10:41.3]} 36... Kxg3 {[%clk 0:05:31]} 37. Re7 {[%clk 0:10:27.4]}
37... Rd8+ {[%clk 0:05:19.7]} 38. Kc4 {[%clk 0:10:27.7]} 38... f5 {[%clk
0:05:17.1]} 39. Rxh7 {[%clk 0:10:28.7]} 39... f4 {[%clk 0:05:18.5]} 40. Rg7
{[%clk 0:10:28.3]} 40... Kxh4 {[%clk 0:05:16]} 41. Rxg6 {[%clk 0:10:29.8]} 41...
f3 {[%clk 0:05:13.9]} 42. Rf6 {[%clk 0:09:48.4]} 42... Kg3 {[%clk 0:05:14.4]}
43. Kb5 {[%clk 0:09:50.1]} 43... f2 {[%clk 0:05:13.5]} 44. Kxa5 {[%clk
0:09:51.3]} 44... Kg2 {[%clk 0:05:02]} 45. Kxb4 {[%clk 0:09:51.7]} 45... f1=Q
{[%clk 0:05:02.5]} 46. Rxf1 {[%clk 0:09:50.9]} 46... Kxf1 {[%clk 0:05:03.6]} 47.
Kc4 {[%clk 0:09:51.3]} 47... Rc8 {[%clk 0:04:51.4]} 48. b4 {[%clk 0:09:52.7]}
48... Ke2 {[%clk 0:04:53]} 49. b5 {[%clk 0:09:54.5]} 49... Ke3 {[%clk 0:04:53]}
50. c6 {[%clk 0:09:56.6]} 50... Ke4 {[%clk 0:04:52]} 51. a5 {[%clk 0:09:55.8]}
51... Ke5 {[%clk 0:04:52.4]} 52. Kc5 {[%clk 0:09:57.7]} 52... Ke6 {[%clk
0:04:52]} 53. b6 {[%clk 0:09:59.4]} 53... Rh8 {[%clk 0:04:39]} 54. b7 {[%clk
0:09:55.1]} 54... Rh5+ {[%clk 0:04:19.7]} 55. Kb6 {[%clk 0:09:55.6]} 55... Rh8
{[%clk 0:04:16.8]} 56. a6 {[%clk 0:09:54.6]} 56... Kd6 {[%clk 0:04:17.1]} 57. a7
{[%clk 0:09:55.8]} 1-0